[Event "Early-Titled-Tuesday-Blitz-February-20-2024"]
[Site "Chess.com"]
[Date "2024.02.20"]
[Round "4"]
[White "KorolDimitriy75"]
[Black "MKlose11"]
[Result "0-1"]
[WhiteElo "2426"]
[BlackElo "2629"]
[TimeControl "180+1"]
[EndTime "8:37:27 PST"]
[Termination "MKlose11 won by resignation"]

1. d4 {[%clk 0:03:00.9]} 1... Nf6 {[%clk 0:02:59.4]} 2. c4 {[%clk 0:03:01.5]}
2... c5 {[%clk 0:02:59.8]} 3. d5 {[%clk 0:03:01.1]} 3... b5 {[%clk 0:02:59.7]}
4. Nd2 {[%clk 0:03:01.5]} 4... bxc4 {[%clk 0:02:59.4]} 5. e4 {[%clk 0:03:01.5]}
5... d6 {[%clk 0:02:59.4]} 6. Bxc4 {[%clk 0:03:01.4]} 6... g6 {[%clk 0:02:59.8]}
7. b3 {[%clk 0:03:01.6]} 7... Bg7 {[%clk 0:03:00.1]} 8. Bb2 {[%clk 0:03:02.2]}
8... O-O {[%clk 0:03:00.4]} 9. Ngf3 {[%clk 0:03:02.6]} 9... Ba6 {[%clk
0:03:01.1]} 10. O-O {[%clk 0:02:58]} 10... Nfd7 {[%clk 0:02:52.3]} 11. Bxg7
{[%clk 0:02:53.5]} 11... Kxg7 {[%clk 0:02:53.2]} 12. Re1 {[%clk 0:02:53.5]}
12... f6 {[%clk 0:02:51.9]} 13. Qc2 {[%clk 0:02:39.7]} 13... Nb6 {[%clk
0:02:51]} 14. Qc3 {[%clk 0:02:31]} 14... Kg8 {[%clk 0:02:49]} 15. h3 {[%clk
0:01:53.4]} 15... Qc8 {[%clk 0:02:45.9]} 16. Nh2 {[%clk 0:01:46.9]} 16... N8d7
{[%clk 0:02:44.3]} 17. f4 {[%clk 0:01:46.3]} 17... Bxc4 {[%clk 0:02:43.1]} 18.
bxc4 {[%clk 0:01:30.9]} 18... Qa6 {[%clk 0:02:40.6]} 19. Nhf3 {[%clk 0:01:22.3]}
19... Rab8 {[%clk 0:02:40.6]} 20. e5 {[%clk 0:01:15.4]} 20... Na4 {[%clk
0:02:36]} 21. Qe3 {[%clk 0:00:56.2]} 21... Nb2 {[%clk 0:02:34.1]} 22. exd6
{[%clk 0:00:53.6]} 22... exd6 {[%clk 0:02:33.6]} 23. Qe6+ {[%clk 0:00:14.1]}
23... Rf7 {[%clk 0:02:32.6]} 24. Ne4 {[%clk 0:00:14.5]} 24... Nxc4 {[%clk
0:02:30.4]} 25. Neg5 {[%clk 0:00:13.8]} 25... fxg5 {[%clk 0:02:28.1]} 26. Nxg5
{[%clk 0:00:14.7]} 26... Rf8 {[%clk 0:02:26.3]} 27. f5 {[%clk 0:00:13.3]} 27...
Nce5 {[%clk 0:02:18.5]} 28. fxg6 {[%clk 0:00:12.3]} 28... hxg6 {[%clk
0:02:19.4]} 29. Rf1 {[%clk 0:00:12.3]} 29... Qd3 {[%clk 0:01:58.6]} 30. Rad1
{[%clk 0:00:10.5]} 30... Qe3+ {[%clk 0:01:57.7]} 31. Kh1 {[%clk 0:00:09.9]}
31... Qxg5 {[%clk 0:01:58]} 32. Rxf7 {[%clk 0:00:07.9]} 32... Rxf7 {[%clk
0:01:58.9]} 33. Rb1 {[%clk 0:00:06.9]} 33... Qf6 {[%clk 0:01:57.9]} 0-1

[Event "Early-Titled-Tuesday-Blitz-February-20-2024"]
[Site "Chess.com"]
[Date "2024.02.20"]
[Round "4"]
[White "MatthewG-p4p"]
[Black "Grischuk"]
[Result "1-0"]
[WhiteElo "2893"]
[BlackElo "3096"]
[TimeControl "180+1"]
[EndTime "8:37:33 PST"]
[Termination "MatthewG-p4p won by resignation"]

1. e4 {[%clk 0:03:00.9]} 1... e5 {[%clk 0:03:00]} 2. Nf3 {[%clk 0:03:00.8]} 2...
Nc6 {[%clk 0:03:00.3]} 3. d4 {[%clk 0:03:01.3]} 3... exd4 {[%clk 0:03:00.2]} 4.
c3 {[%clk 0:03:02]} 4... d5 {[%clk 0:02:50.3]} 5. exd5 {[%clk 0:03:00.2]} 5...
Qxd5 {[%clk 0:02:51.2]} 6. cxd4 {[%clk 0:03:00.8]} 6... Bg4 {[%clk 0:02:13.5]}
7. Be2 {[%clk 0:03:01]} 7... O-O-O {[%clk 0:02:10.8]} 8. Nc3 {[%clk 0:02:59.7]}
8... Qa5 {[%clk 0:01:36.4]} 9. Be3 {[%clk 0:02:54.7]} 9... Nge7 {[%clk 0:01:25]}
10. O-O {[%clk 0:02:37]} 10... Nf5 {[%clk 0:01:24.8]} 11. Qb3 {[%clk 0:02:37.6]}
11... Bb4 {[%clk 0:01:02.5]} 12. a3 {[%clk 0:02:11.3]} 12... Bxc3 {[%clk
0:00:57.7]} 13. bxc3 {[%clk 0:02:12.2]} 13... Nxe3 {[%clk 0:00:29.3]} 14. fxe3
{[%clk 0:02:11.1]} 14... Kb8 {[%clk 0:00:29.5]} 15. Rab1 {[%clk 0:02:08.1]}
15... Bc8 {[%clk 0:00:29.9]} 16. Bb5 {[%clk 0:01:56.1]} 16... Rd6 {[%clk
0:00:27.1]} 17. Ng5 {[%clk 0:01:39.4]} 17... Rg6 {[%clk 0:00:21.5]} 18. Nxf7
{[%clk 0:01:37.5]} 18... Rf8 {[%clk 0:00:19.5]} 19. Bxc6 {[%clk 0:01:35.8]}
19... Rxc6 {[%clk 0:00:20.4]} 20. Ne5 {[%clk 0:01:36.2]} 20... Rxf1+ {[%clk
0:00:20.3]} 21. Rxf1 {[%clk 0:01:34.2]} 21... Rxc3 {[%clk 0:00:08]} 22. Qg8
{[%clk 0:01:30.2]} 22... Qb5 {[%clk 0:00:08.1]} 23. Qxc8+ {[%clk 0:01:27.3]} 1-0

[Event "Early-Titled-Tuesday-Blitz-February-20-2024"]
[Site "Chess.com"]
[Date "2024.02.20"]
[Round "4"]
[White "JiaHaoxiang"]
[Black "GOGIEFF"]
[Result "0-1"]
[WhiteElo "2618"]
[BlackElo "3018"]
[TimeControl "180+1"]
[EndTime "8:37:34 PST"]
[Termination "GOGIEFF won by resignation"]

1. d4 {[%clk 0:03:00.9]} 1... Nf6 {[%clk 0:02:59.4]} 2. g3 {[%clk 0:03:01]} 2...
c5 {[%clk 0:02:55.7]} 3. dxc5 {[%clk 0:02:54.8]} 3... e6 {[%clk 0:02:54.9]} 4.
Bg2 {[%clk 0:02:54.1]} 4... Bxc5 {[%clk 0:02:53.8]} 5. Nf3 {[%clk 0:02:53.1]}
5... O-O {[%clk 0:02:52.7]} 6. O-O {[%clk 0:02:53.2]} 6... Nc6 {[%clk
0:02:45.3]} 7. a3 {[%clk 0:02:50.8]} 7... d5 {[%clk 0:02:39.1]} 8. b4 {[%clk
0:02:50.3]} 8... Bb6 {[%clk 0:02:39.1]} 9. Bb2 {[%clk 0:02:50.4]} 9... Qe7
{[%clk 0:02:33.3]} 10. Ne5 {[%clk 0:02:44.7]} 10... Rd8 {[%clk 0:02:25.7]} 11.
Nxc6 {[%clk 0:02:43.2]} 11... bxc6 {[%clk 0:02:25.6]} 12. c4 {[%clk 0:02:43.9]}
12... a5 {[%clk 0:02:19.9]} 13. cxd5 {[%clk 0:02:31.4]} 13... cxd5 {[%clk
0:02:16.7]} 14. b5 {[%clk 0:02:29.1]} 14... a4 {[%clk 0:02:08.2]} 15. Nc3 {[%clk
0:02:26.9]} 15... Qa7 {[%clk 0:02:08.7]} 16. Rc1 {[%clk 0:02:16]} 16... Bd7
{[%clk 0:02:08.3]} 17. Qd3 {[%clk 0:02:10.8]} 17... Ng4 {[%clk 0:02:06.3]} 18.
e3 {[%clk 0:02:10]} 18... Ne5 {[%clk 0:02:04.5]} 19. Qe2 {[%clk 0:02:04.9]}
19... Nc4 {[%clk 0:02:04.9]} 20. Rfd1 {[%clk 0:01:28.7]} 20... Rac8 {[%clk
0:01:57.9]} 21. Ba1 {[%clk 0:01:27]} 21... Nxe3 {[%clk 0:01:48.2]} 22. fxe3
{[%clk 0:01:23.9]} 22... Bxe3+ {[%clk 0:01:49.1]} 23. Kh1 {[%clk 0:01:24.5]}
23... Bxc1 {[%clk 0:01:49.5]} 24. Rxc1 {[%clk 0:01:25.2]} 24... d4 {[%clk
0:01:50]} 25. Na2 {[%clk 0:01:25.1]} 25... Rxc1+ {[%clk 0:01:42.2]} 26. Nxc1
{[%clk 0:01:25]} 26... Qc5 {[%clk 0:01:42.8]} 27. Nd3 {[%clk 0:01:16.2]} 27...
Bxb5 {[%clk 0:01:35]} 28. Nxc5 {[%clk 0:00:44.5]} 28... Bxe2 {[%clk 0:01:35.9]}
29. Ne4 {[%clk 0:00:43.4]} 29... e5 {[%clk 0:01:29.7]} 30. Kg1 {[%clk
0:00:36.9]} 30... Rc8 {[%clk 0:01:27.7]} 0-1

[Event "Early-Titled-Tuesday-Blitz-February-20-2024"]
[Site "Chess.com"]
[Date "2024.02.20"]
[Round "4"]
[White "dosto07"]
[Black "le-castor-faineant"]
[Result "1/2-1/2"]
[WhiteElo "2495"]
[BlackElo "2287"]
[TimeControl "180+1"]
[EndTime "8:37:34 PST"]
[Termination "Game drawn by repetition"]

1. e4 {[%clk 0:03:00.9]} 1... e5 {[%clk 0:02:59.6]} 2. Nf3 {[%clk 0:03:01.1]}
2... Nf6 {[%clk 0:03:00]} 3. d4 {[%clk 0:03:00.6]} 3... Nxe4 {[%clk 0:02:56.4]}
4. Bd3 {[%clk 0:03:00.7]} 4... d5 {[%clk 0:02:56.2]} 5. Nxe5 {[%clk 0:03:00.8]}
5... Bd6 {[%clk 0:02:54.9]} 6. O-O {[%clk 0:03:00]} 6... O-O {[%clk 0:02:49.2]}
7. Nd2 {[%clk 0:02:59.4]} 7... Nxd2 {[%clk 0:02:45.1]} 8. Qxd2 {[%clk
0:02:59.3]} 8... Nd7 {[%clk 0:02:45]} 9. Nxd7 {[%clk 0:02:59.1]} 9... Bxd7
{[%clk 0:02:44.5]} 10. Qg5 {[%clk 0:02:50.2]} 10... Qxg5 {[%clk 0:02:41.6]} 11.
Bxg5 {[%clk 0:02:49.4]} 11... Rae8 {[%clk 0:02:39.4]} 12. Rfe1 {[%clk
0:02:49.3]} 12... Rxe1+ {[%clk 0:02:38.5]} 13. Rxe1 {[%clk 0:02:48.6]} 13... Re8
{[%clk 0:02:39.4]} 14. Rd1 {[%clk 0:02:44.8]} 14... f6 {[%clk 0:02:32]} 15. Bh4
{[%clk 0:02:44.7]} 15... Kf7 {[%clk 0:02:29.2]} 16. Bg3 {[%clk 0:02:44.9]} 16...
Bxg3 {[%clk 0:02:24.2]} 17. hxg3 {[%clk 0:02:45]} 17... Bg4 {[%clk 0:02:23.1]}
18. f3 {[%clk 0:02:44.4]} 18... Bh5 {[%clk 0:02:22.7]} 19. Kf2 {[%clk
0:02:42.4]} 19... Bg6 {[%clk 0:02:22.5]} 20. Bxg6+ {[%clk 0:02:40.3]} 20... Kxg6
{[%clk 0:02:21.7]} 21. Rd3 {[%clk 0:02:41.2]} 21... Re6 {[%clk 0:02:19.9]} 22.
Rb3 {[%clk 0:02:40.1]} 22... Rb6 {[%clk 0:02:19.1]} 23. Rxb6 {[%clk 0:02:35]}
23... axb6 {[%clk 0:02:17.3]} 24. g4 {[%clk 0:02:24.4]} 24... f5 {[%clk
0:02:13.3]} 25. Kg3 {[%clk 0:02:20.8]} 25... fxg4 {[%clk 0:02:12.2]} 26. Kxg4
{[%clk 0:02:20.9]} 26... Kf6 {[%clk 0:02:10.4]} 27. g3 {[%clk 0:02:11.9]} 27...
g6 {[%clk 0:02:08.7]} 28. f4 {[%clk 0:02:08.2]} 28... h5+ {[%clk 0:01:42.8]} 29.
Kf3 {[%clk 0:02:04.2]} 29... Kf5 {[%clk 0:01:40.4]} 30. c3 {[%clk 0:01:59]}
30... b5 {[%clk 0:01:38.7]} 31. b3 {[%clk 0:01:58.6]} 31... c6 {[%clk
0:01:32.1]} 32. a3 {[%clk 0:01:58.1]} 32... b6 {[%clk 0:01:28.5]} 33. a4 {[%clk
0:01:15.3]} 33... bxa4 {[%clk 0:01:24]} 34. bxa4 {[%clk 0:01:15.5]} 34... g5
{[%clk 0:01:23.1]} 35. fxg5 {[%clk 0:01:15.4]} 35... Kxg5 {[%clk 0:01:24]} 36.
Ke3 {[%clk 0:01:08.7]} 36... Kg4 {[%clk 0:01:23.6]} 37. Kf2 {[%clk 0:01:09]}
37... Kg5 {[%clk 0:01:16.5]} 38. Kf3 {[%clk 0:01:07.2]} 38... Kf5 {[%clk
0:01:16.6]} 39. Ke3 {[%clk 0:01:07.7]} 39... Kg4 {[%clk 0:01:16.8]} 40. Kf2
{[%clk 0:01:08.1]} 40... Kg5 {[%clk 0:01:17.2]} 41. Kf3 {[%clk 0:01:08.4]} 41...
Kf5 {[%clk 0:01:17.5]} 42. Ke3 {[%clk 0:01:08]} 42... Kg4 {[%clk 0:01:17.5]}
1/2-1/2

[Event "Early-Titled-Tuesday-Blitz-February-20-2024"]
[Site "Chess.com"]
[Date "2024.02.20"]
[Round "4"]
[White "blitzking1729"]
[Black "Licancabur"]
[Result "1-0"]
[WhiteElo "2718"]
[BlackElo "2416"]
[TimeControl "180+1"]
[EndTime "8:37:41 PST"]
[Termination "blitzking1729 won on time"]

1. e4 {[%clk 0:03:00.9]} 1... Nf6 {[%clk 0:02:59.4]} 2. d3 {[%clk 0:02:56.2]}
2... d5 {[%clk 0:02:57.8]} 3. Nd2 {[%clk 0:02:56.8]} 3... e5 {[%clk 0:02:54.1]}
4. Ngf3 {[%clk 0:02:56.1]} 4... Nc6 {[%clk 0:02:53.7]} 5. Be2 {[%clk 0:02:55.7]}
5... Be7 {[%clk 0:02:49.8]} 6. O-O {[%clk 0:02:55.4]} 6... O-O {[%clk
0:02:48.5]} 7. c3 {[%clk 0:02:55.7]} 7... h6 {[%clk 0:02:45.7]} 8. Qc2 {[%clk
0:02:55.7]} 8... Be6 {[%clk 0:02:40.7]} 9. Re1 {[%clk 0:02:53.5]} 9... Re8
{[%clk 0:02:31.7]} 10. Nf1 {[%clk 0:02:53.1]} 10... Qd7 {[%clk 0:02:19.2]} 11.
a3 {[%clk 0:02:48.3]} 11... a5 {[%clk 0:02:12.9]} 12. a4 {[%clk 0:02:48.6]}
12... Rad8 {[%clk 0:02:11.5]} 13. Ng3 {[%clk 0:02:47]} 13... Bf8 {[%clk
0:02:07.1]} 14. Be3 {[%clk 0:02:44.7]} 14... Ng4 {[%clk 0:01:59.6]} 15. Bd2
{[%clk 0:02:38.6]} 15... Bc5 {[%clk 0:01:55.7]} 16. Rf1 {[%clk 0:02:38.3]} 16...
Nf6 {[%clk 0:01:35.3]} 17. Rad1 {[%clk 0:02:24.5]} 17... Qe7 {[%clk 0:01:28.3]}
18. h3 {[%clk 0:02:20.5]} 18... Bc8 {[%clk 0:01:26.9]} 19. Rfe1 {[%clk
0:02:18.1]} 19... dxe4 {[%clk 0:01:17.2]} 20. dxe4 {[%clk 0:02:14]} 20... Rd6
{[%clk 0:01:10.5]} 21. Nh4 {[%clk 0:02:11]} 21... Ng4 {[%clk 0:00:58.1]} 22.
Nhf5 {[%clk 0:01:56]} 22... Bxf2+ {[%clk 0:00:52.8]} 23. Kh1 {[%clk 0:01:54.8]}
23... Bxf5 {[%clk 0:00:52.7]} 24. Nxf5 {[%clk 0:01:54.4]} 24... Qd8 {[%clk
0:00:35.6]} 25. Nxd6 {[%clk 0:01:44.6]} 25... Bxe1 {[%clk 0:00:28.9]} 26. Bxg4
{[%clk 0:01:41.4]} 1-0

[Event "Early-Titled-Tuesday-Blitz-February-20-2024"]
[Site "Chess.com"]
[Date "2024.02.20"]
[Round "4"]
[White "arturdailima"]
[Black "Dewarfd"]
[Result "1-0"]
[WhiteElo "2378"]
[BlackElo "2142"]
[TimeControl "180+1"]
[EndTime "8:37:43 PST"]
[Termination "arturdailima won on time"]

1. Nf3 {[%clk 0:03:00.9]} 1... Nf6 {[%clk 0:02:58.3]} 2. g3 {[%clk 0:02:56.7]}
2... g6 {[%clk 0:02:56.6]} 3. Bg2 {[%clk 0:02:57.1]} 3... Bg7 {[%clk 0:02:56.8]}
4. O-O {[%clk 0:02:57.8]} 4... d5 {[%clk 0:02:56.2]} 5. d4 {[%clk 0:02:58]} 5...
O-O {[%clk 0:02:55.8]} 6. c4 {[%clk 0:02:56.5]} 6... dxc4 {[%clk 0:02:51]} 7.
Na3 {[%clk 0:02:56.7]} 7... c5 {[%clk 0:02:49.6]} 8. dxc5 {[%clk 0:02:55.9]}
8... Qc7 {[%clk 0:02:42.1]} 9. Nxc4 {[%clk 0:02:44.6]} 9... Qxc5 {[%clk
0:02:41.8]} 10. b3 {[%clk 0:02:27.4]} 10... Be6 {[%clk 0:02:17.5]} 11. Ba3
{[%clk 0:02:26.7]} 11... Qc7 {[%clk 0:02:10.5]} 12. Rc1 {[%clk 0:02:26.1]} 12...
Rd8 {[%clk 0:02:08.4]} 13. Qe1 {[%clk 0:02:25.7]} 13... Nc6 {[%clk 0:01:50.5]}
14. Nce5 {[%clk 0:02:23.2]} 14... Bd5 {[%clk 0:01:21.1]} 15. Nxc6 {[%clk
0:02:18]} 15... Bxc6 {[%clk 0:01:12.4]} 16. Ne5 {[%clk 0:02:17.6]} 16... Qxe5
{[%clk 0:01:08.4]} 17. Bxc6 {[%clk 0:02:17.5]} 17... bxc6 {[%clk 0:01:08]} 18.
Rxc6 {[%clk 0:02:18.4]} 18... e6 {[%clk 0:00:48.7]} 19. Rc4 {[%clk 0:02:14.6]}
19... Nd5 {[%clk 0:00:38.3]} 20. e4 {[%clk 0:02:10.7]} 20... Nb6 {[%clk
0:00:33.9]} 21. Rc2 {[%clk 0:02:08]} 21... Rac8 {[%clk 0:00:27.9]} 22. Bb2
{[%clk 0:02:08.1]} 22... Qd6 {[%clk 0:00:15.5]} 23. e5 {[%clk 0:02:06.2]} 23...
Qd3 {[%clk 0:00:12.7]} 24. Re2 {[%clk 0:02:06.1]} 24... Nd5 {[%clk 0:00:10]} 25.
Ba3 {[%clk 0:02:03.6]} 25... Rc2 {[%clk 0:00:08.3]} 26. Rxc2 {[%clk 0:01:55.4]}
26... Qxc2 {[%clk 0:00:09.2]} 27. Qa5 {[%clk 0:01:56]} 27... Rc8 {[%clk
0:00:08.3]} 28. Bd6 {[%clk 0:01:53]} 28... Nc3 {[%clk 0:00:04.6]} 29. Qa6 {[%clk
0:01:51.1]} 29... Ne2+ {[%clk 0:00:03.5]} 30. Kg2 {[%clk 0:01:51.3]} 30... Qe4+
{[%clk 0:00:03.3]} 31. f3 {[%clk 0:01:48.7]} 1-0

[Event "Early-Titled-Tuesday-Blitz-February-20-2024"]
[Site "Chess.com"]
[Date "2024.02.20"]
[Round "4"]
[White "WindWhistler11"]
[Black "waspofborneo"]
[Result "1-0"]
[WhiteElo "2485"]
[BlackElo "2214"]
[TimeControl "180+1"]
[EndTime "8:37:45 PST"]
[Termination "WindWhistler11 won by resignation"]

1. Nf3 {[%clk 0:03:00.9]} 1... c5 {[%clk 0:02:55.9]} 2. g3 {[%clk 0:03:01]} 2...
Nf6 {[%clk 0:02:55.1]} 3. Bg2 {[%clk 0:03:01.7]} 3... d5 {[%clk 0:02:55.2]} 4.
c4 {[%clk 0:02:59.8]} 4... Bf5 {[%clk 0:02:41.3]} 5. cxd5 {[%clk 0:02:57.9]}
5... Nxd5 {[%clk 0:02:38.2]} 6. d3 {[%clk 0:02:56.9]} 6... Bg6 {[%clk
0:02:26.9]} 7. Nc3 {[%clk 0:02:48.9]} 7... e6 {[%clk 0:02:16.3]} 8. Qb3 {[%clk
0:02:40.6]} 8... Qd7 {[%clk 0:02:11.5]} 9. Ne5 {[%clk 0:02:39.6]} 9... Qc7
{[%clk 0:01:48.1]} 10. Nxd5 {[%clk 0:02:20.5]} 10... exd5 {[%clk 0:01:34.4]} 11.
Qxd5 {[%clk 0:02:18.2]} 11... Nd7 {[%clk 0:01:03.8]} 12. Qxb7 {[%clk 0:02:00.5]}
12... Qxb7 {[%clk 0:00:40.5]} 13. Bxb7 {[%clk 0:01:59.7]} 13... Rb8 {[%clk
0:00:23.5]} 14. Bc6 {[%clk 0:01:57.1]} 14... Bf5 {[%clk 0:00:23.8]} 15. e4
{[%clk 0:01:36.8]} 15... Be6 {[%clk 0:00:23.6]} 16. f4 {[%clk 0:01:37.3]} 16...
g6 {[%clk 0:00:23.3]} 17. Bd2 {[%clk 0:01:17.6]} 17... Bg7 {[%clk 0:00:23.3]}
18. Bc3 {[%clk 0:01:15.2]} 18... Kd8 {[%clk 0:00:15.1]} 19. Bxd7 {[%clk
0:01:11.2]} 19... Bxd7 {[%clk 0:00:13.5]} 20. Nxf7+ {[%clk 0:01:11.1]} 20... Ke7
{[%clk 0:00:12.9]} 21. Nxh8 {[%clk 0:01:09.9]} 21... Bxc3+ {[%clk 0:00:12.2]}
22. bxc3 {[%clk 0:01:10.8]} 1-0

[Event "Early-Titled-Tuesday-Blitz-February-20-2024"]
[Site "Chess.com"]
[Date "2024.02.20"]
[Round "4"]
[White "hansen"]
[Black "Huragan007"]
[Result "1-0"]
[WhiteElo "2918"]
[BlackElo "2605"]
[TimeControl "180+1"]
[EndTime "8:37:46 PST"]
[Termination "hansen won by resignation"]

1. e4 {[%clk 0:03:00.9]} 1... c5 {[%clk 0:03:00]} 2. Nf3 {[%clk 0:03:01.3]} 2...
d6 {[%clk 0:03:00.6]} 3. c3 {[%clk 0:03:00.6]} 3... Nf6 {[%clk 0:03:00.2]} 4.
Be2 {[%clk 0:03:01.1]} 4... Bg4 {[%clk 0:02:57.3]} 5. h3 {[%clk 0:03:00.9]} 5...
Bxf3 {[%clk 0:02:57.4]} 6. Bxf3 {[%clk 0:03:01.8]} 6... Nc6 {[%clk 0:02:56.8]}
7. d3 {[%clk 0:03:02.3]} 7... g6 {[%clk 0:02:56.8]} 8. O-O {[%clk 0:03:02.8]}
8... Bg7 {[%clk 0:02:57.2]} 9. Re1 {[%clk 0:03:03.4]} 9... O-O {[%clk
0:02:57.4]} 10. Be2 {[%clk 0:03:03.5]} 10... b5 {[%clk 0:02:53.3]} 11. a3 {[%clk
0:03:02.9]} 11... Rb8 {[%clk 0:02:49]} 12. Nd2 {[%clk 0:02:58.7]} 12... a5
{[%clk 0:02:48.8]} 13. Nf3 {[%clk 0:02:55.6]} 13... b4 {[%clk 0:02:46.7]} 14.
axb4 {[%clk 0:02:56.5]} 14... axb4 {[%clk 0:02:47.4]} 15. Qc2 {[%clk 0:02:51.9]}
15... Nd7 {[%clk 0:02:44.4]} 16. Be3 {[%clk 0:02:51]} 16... Qb6 {[%clk
0:02:14.6]} 17. Reb1 {[%clk 0:02:48.5]} 17... b3 {[%clk 0:02:03.1]} 18. Qd1
{[%clk 0:02:45.8]} 18... Ra8 {[%clk 0:02:02.6]} 19. Rxa8 {[%clk 0:02:34.2]}
19... Rxa8 {[%clk 0:02:03.5]} 20. d4 {[%clk 0:02:35]} 20... Ra2 {[%clk
0:01:52.1]} 21. e5 {[%clk 0:02:18.2]} 21... dxe5 {[%clk 0:01:28.5]} 22. dxc5
{[%clk 0:02:09.2]} 22... Nxc5 {[%clk 0:01:19.8]} 23. Ng5 {[%clk 0:01:42.4]}
23... Qa5 {[%clk 0:01:02.1]} 24. Bc4 {[%clk 0:01:42.1]} 24... e6 {[%clk
0:00:59.4]} 25. Nxf7 {[%clk 0:01:42.2]} 25... Kxf7 {[%clk 0:00:21.8]} 26. Qf3+
{[%clk 0:01:41.4]} 26... Bf6 {[%clk 0:00:11.2]} 27. Qxc6 {[%clk 0:01:41.5]}
27... Rxb2 {[%clk 0:00:07.7]} 28. Rxb2 {[%clk 0:01:37.6]} 28... Qa1+ {[%clk
0:00:07.8]} 29. Kh2 {[%clk 0:01:38.2]} 29... Qxb2 {[%clk 0:00:08.1]} 30. Bxc5
{[%clk 0:01:37]} 30... Qxc3 {[%clk 0:00:07.1]} 31. Qxe6+ {[%clk 0:01:36.9]}
31... Kg7 {[%clk 0:00:07]} 32. Bf8+ {[%clk 0:01:36.2]} 32... Kxf8 {[%clk
0:00:07]} 33. Qxf6+ {[%clk 0:01:36.7]} 33... Ke8 {[%clk 0:00:06.5]} 34. Bb5+
{[%clk 0:01:37.6]} 1-0

[Event "Early-Titled-Tuesday-Blitz-February-20-2024"]
[Site "Chess.com"]
[Date "2024.02.20"]
[Round "4"]
[White "Mr_November18"]
[Black "FaustinoOro"]
[Result "0-1"]
[WhiteElo "2132"]
[BlackElo "2898"]
[TimeControl "180+1"]
[EndTime "8:37:46 PST"]
[Termination "FaustinoOro won by resignation"]

1. e4 {[%clk 0:02:59.6]} 1... e5 {[%clk 0:02:54.1]} 2. Nf3 {[%clk 0:02:58.6]}
2... Nc6 {[%clk 0:02:54.2]} 3. d4 {[%clk 0:02:58.8]} 3... exd4 {[%clk
0:02:54.1]} 4. Bc4 {[%clk 0:02:59.1]} 4... Nf6 {[%clk 0:02:53.1]} 5. e5 {[%clk
0:02:59.5]} 5... d5 {[%clk 0:02:53.3]} 6. Bb5 {[%clk 0:02:59.8]} 6... Ne4 {[%clk
0:02:53.4]} 7. Nxd4 {[%clk 0:02:58.7]} 7... Bd7 {[%clk 0:02:54]} 8. Bxc6 {[%clk
0:02:58.4]} 8... bxc6 {[%clk 0:02:53.2]} 9. O-O {[%clk 0:02:58.4]} 9... Bc5
{[%clk 0:02:52.7]} 10. f3 {[%clk 0:02:57.3]} 10... Ng5 {[%clk 0:02:52.2]} 11. f4
{[%clk 0:02:57.3]} 11... Ne4 {[%clk 0:02:52.1]} 12. Be3 {[%clk 0:02:55.8]} 12...
O-O {[%clk 0:02:48.4]} 13. Nd2 {[%clk 0:02:55.7]} 13... Nxd2 {[%clk 0:02:44.4]}
14. Qxd2 {[%clk 0:02:56]} 14... f6 {[%clk 0:02:40.3]} 15. Nb3 {[%clk 0:02:48.7]}
15... Bb6 {[%clk 0:02:35]} 16. Qc3 {[%clk 0:02:47.7]} 16... fxe5 {[%clk
0:02:33.5]} 17. fxe5 {[%clk 0:02:45.5]} 17... Qh4 {[%clk 0:02:25.2]} 18. Kh1
{[%clk 0:02:28]} 18... Rae8 {[%clk 0:02:14.4]} 19. Bd4 {[%clk 0:02:07.7]} 19...
Qe4 {[%clk 0:01:36.7]} 20. Nc5 {[%clk 0:01:48.2]} 20... Rxf1+ {[%clk 0:01:29.2]}
21. Rxf1 {[%clk 0:01:44.2]} 21... Bxc5 {[%clk 0:01:28.7]} 22. Qxc5 {[%clk
0:01:37.4]} 22... Bh3 {[%clk 0:01:19.3]} 23. Rg1 {[%clk 0:01:20.4]} 23... Rf8
{[%clk 0:01:05.6]} 24. Qxa7 {[%clk 0:01:12.6]} 24... Bxg2+ {[%clk 0:00:55.8]}
25. Rxg2 {[%clk 0:01:10.7]} 25... Rf1+ {[%clk 0:00:56.4]} 26. Bg1 {[%clk
0:01:09]} 26... h5 {[%clk 0:00:51.1]} 27. Qb8+ {[%clk 0:01:06.7]} 27... Kh7
{[%clk 0:00:50.7]} 28. Qxc7 {[%clk 0:01:00]} 28... Rxg1+ {[%clk 0:00:49.2]} 0-1

[Event "Early-Titled-Tuesday-Blitz-February-20-2024"]
[Site "Chess.com"]
[Date "2024.02.20"]
[Round "4"]
[White "C_K_G"]
[Black "GM_Huschenbeth"]
[Result "0-1"]
[WhiteElo "2169"]
[BlackElo "2473"]
[TimeControl "180+1"]
[EndTime "8:37:47 PST"]
[Termination "GM_Huschenbeth won by resignation"]

1. e4 {[%clk 0:02:52.4]} 1... c5 {[%clk 0:02:55.2]} 2. Nf3 {[%clk 0:02:52.9]}
2... d6 {[%clk 0:02:55.3]} 3. d4 {[%clk 0:02:53.5]} 3... cxd4 {[%clk 0:02:56.2]}
4. Nxd4 {[%clk 0:02:54.1]} 4... Nf6 {[%clk 0:02:56.9]} 5. Nc3 {[%clk 0:02:54.5]}
5... a6 {[%clk 0:02:57.4]} 6. Be2 {[%clk 0:02:51.4]} 6... Nbd7 {[%clk
0:02:53.4]} 7. Be3 {[%clk 0:02:48.5]} 7... e6 {[%clk 0:02:53.1]} 8. O-O {[%clk
0:02:47.9]} 8... b5 {[%clk 0:02:45.6]} 9. a3 {[%clk 0:02:45.7]} 9... Bb7 {[%clk
0:02:45.4]} 10. Bd3 {[%clk 0:02:44.5]} 10... Nc5 {[%clk 0:02:41.9]} 11. f3
{[%clk 0:02:27.7]} 11... Be7 {[%clk 0:02:41.9]} 12. Kh1 {[%clk 0:02:21.6]} 12...
O-O {[%clk 0:02:41.5]} 13. Qe2 {[%clk 0:02:18.8]} 13... Qc7 {[%clk 0:02:41.1]}
14. g4 {[%clk 0:02:17.9]} 14... d5 {[%clk 0:02:34.4]} 15. g5 {[%clk 0:01:55.2]}
15... dxe4 {[%clk 0:02:29.8]} 16. gxf6 {[%clk 0:01:39.7]} 16... exd3 {[%clk
0:02:29.7]} 17. fxe7 {[%clk 0:01:31.4]} 17... dxe2 {[%clk 0:02:29.2]} 18.
exf8=Q+ {[%clk 0:01:31]} 18... Rxf8 {[%clk 0:02:22]} 19. Ncxe2 {[%clk
0:01:29.4]} 19... Qe5 {[%clk 0:02:06.1]} 20. Bf4 {[%clk 0:01:20.8]} 20... Qf6
{[%clk 0:02:05]} 21. Bd6 {[%clk 0:01:17.7]} 21... Rc8 {[%clk 0:01:59.6]} 22.
Rad1 {[%clk 0:01:13.5]} 22... e5 {[%clk 0:01:57.8]} 23. Bxc5 {[%clk 0:00:38.8]}
23... Rxc5 {[%clk 0:01:58.7]} 24. Nb3 {[%clk 0:00:33.7]} 24... Rxc2 {[%clk
0:01:52.9]} 25. Ng1 {[%clk 0:00:16.4]} 25... Qg5 {[%clk 0:01:42.7]} 26. Nd2
{[%clk 0:00:08.5]} 26... Rxd2 {[%clk 0:01:42.4]} 27. Rxd2 {[%clk 0:00:08.7]}
27... Qxd2 {[%clk 0:01:43.3]} 28. Nh3 {[%clk 0:00:07.8]} 28... Qe2 {[%clk
0:01:39.3]} 29. Kg1 {[%clk 0:00:07.9]} 29... Bxf3 {[%clk 0:01:38.6]} 30. Nf2
{[%clk 0:00:08.8]} 30... Qe3 {[%clk 0:01:36.5]} 0-1